[Event "Early-Titled-Tuesday-Blitz-March-05-2024"]
[Site "Chess.com"]
[Date "2024.03.05"]
[Round "2"]
[White "MarijaKuznecova"]
[Black "JoachimBN"]
[Result "0-1"]
[WhiteElo "2340"]
[BlackElo "2670"]
[TimeControl "180+1"]
[EndTime "8:17:58 PST"]
[Termination "JoachimBN won on time"]

1. e4 {[%clk 0:03:00.9]} 1... c5 {[%clk 0:02:53.2]} 2. Nf3 {[%clk 0:03:00.7]}
2... g6 {[%clk 0:02:53.6]} 3. d4 {[%clk 0:03:01.1]} 3... cxd4 {[%clk 0:02:54.5]}
4. Nxd4 {[%clk 0:03:01.7]} 4... Bg7 {[%clk 0:02:55]} 5. Nc3 {[%clk 0:03:02.3]}
5... Nc6 {[%clk 0:02:55.6]} 6. Be3 {[%clk 0:03:02.1]} 6... Nf6 {[%clk
0:02:56.1]} 7. Bc4 {[%clk 0:03:02.6]} 7... O-O {[%clk 0:02:56.1]} 8. Bb3 {[%clk
0:03:03.1]} 8... Qa5 {[%clk 0:02:56.8]} 9. O-O {[%clk 0:03:02.5]} 9... d6 {[%clk
0:02:57.4]} 10. h3 {[%clk 0:03:02.8]} 10... Bd7 {[%clk 0:02:56.8]} 11. Nd5
{[%clk 0:02:59.7]} 11... Nxe4 {[%clk 0:01:54.7]} 12. Nxc6 {[%clk 0:02:22.7]}
12... bxc6 {[%clk 0:01:55.6]} 13. Nxe7+ {[%clk 0:02:23]} 13... Kh8 {[%clk
0:01:54.5]} 14. Qd3 {[%clk 0:01:51.2]} 14... Qe5 {[%clk 0:01:39.8]} 15. f3
{[%clk 0:01:21.3]} 15... Nc5 {[%clk 0:01:26.4]} 16. Bxc5 {[%clk 0:00:51.1]}
16... Qxc5+ {[%clk 0:01:23.8]} 17. Kh1 {[%clk 0:00:51.2]} 17... Rae8 {[%clk
0:01:24.5]} 18. Rfe1 {[%clk 0:00:43.9]} 18... d5 {[%clk 0:01:24.4]} 19. Nxd5
{[%clk 0:00:39.1]} 19... cxd5 {[%clk 0:01:23.7]} 20. Bxd5 {[%clk 0:00:40]} 20...
Bf5 {[%clk 0:01:19.8]} 21. Be4 {[%clk 0:00:35.2]} 21... Bxe4 {[%clk 0:01:18]}
22. Rxe4 {[%clk 0:00:36.1]} 22... Rxe4 {[%clk 0:01:17.5]} 23. Qxe4 {[%clk
0:00:37]} 23... Bxb2 {[%clk 0:01:17.2]} 24. Rd1 {[%clk 0:00:35.5]} 24... Qe5
{[%clk 0:01:06.5]} 25. Qb7 {[%clk 0:00:30.5]} 25... Bd4 {[%clk 0:00:49.4]} 26.
c4 {[%clk 0:00:18.5]} 26... Bb6 {[%clk 0:00:46.4]} 27. Qd5 {[%clk 0:00:08.2]}
27... Qg3 {[%clk 0:00:38.6]} 28. c5 {[%clk 0:00:05.5]} 28... Rd8 {[%clk
0:00:34.9]} 29. Qb3 {[%clk 0:00:01.4]} 29... Rxd1+ {[%clk 0:00:33.9]} 30. Qxd1
{[%clk 0:00:02.3]} 30... Bxc5 {[%clk 0:00:32.3]} 31. Qd8+ {[%clk 0:00:01.5]}
31... Kg7 {[%clk 0:00:32.5]} 32. Qd1 {[%clk 0:00:01.1]} 32... Bd6 {[%clk
0:00:31.5]} 33. Kg1 {[%clk 0:00:01.6]} 33... Qe5 {[%clk 0:00:31.1]} 0-1

[Event "Early-Titled-Tuesday-Blitz-March-05-2024"]
[Site "Chess.com"]
[Date "2024.03.05"]
[Round "2"]
[White "ChessRespected"]
[Black "Sina_Movahed"]
[Result "0-1"]
[WhiteElo "2618"]
[BlackElo "3035"]
[TimeControl "180+1"]
[EndTime "8:17:59 PST"]
[Termination "Sina_Movahed won on time"]

1. d4 {[%clk 0:03:00.9]} 1... Nf6 {[%clk 0:02:56]} 2. Nf3 {[%clk 0:03:00.9]}
2... g6 {[%clk 0:02:56.5]} 3. g3 {[%clk 0:03:00.3]} 3... Bg7 {[%clk 0:02:57.4]}
4. Bg2 {[%clk 0:03:00.7]} 4... O-O {[%clk 0:02:58.3]} 5. c4 {[%clk 0:03:01.1]}
5... d6 {[%clk 0:02:59.2]} 6. Nc3 {[%clk 0:03:01.5]} 6... Nbd7 {[%clk
0:03:00.1]} 7. O-O {[%clk 0:03:01]} 7... e5 {[%clk 0:03:00.8]} 8. e4 {[%clk
0:03:01.2]} 8... exd4 {[%clk 0:03:01.2]} 9. Nxd4 {[%clk 0:03:01.4]} 9... Re8
{[%clk 0:03:02.1]} 10. Re1 {[%clk 0:03:01.7]} 10... Nc5 {[%clk 0:03:02.3]} 11.
h3 {[%clk 0:02:51.2]} 11... h6 {[%clk 0:03:02.7]} 12. Rb1 {[%clk 0:02:49.9]}
12... c6 {[%clk 0:03:00.7]} 13. b3 {[%clk 0:02:44.1]} 13... a5 {[%clk
0:03:00.4]} 14. Bf4 {[%clk 0:02:39.4]} 14... g5 {[%clk 0:02:28.4]} 15. Be3
{[%clk 0:02:26.9]} 15... Nfxe4 {[%clk 0:02:26.7]} 16. Nxe4 {[%clk 0:02:27.8]}
16... Nxe4 {[%clk 0:02:27.2]} 17. Qc2 {[%clk 0:02:07.6]} 17... Nxg3 {[%clk
0:02:27.2]} 18. Nxc6 {[%clk 0:01:52.4]} 18... bxc6 {[%clk 0:02:28.1]} 19. fxg3
{[%clk 0:01:52.6]} 19... d5 {[%clk 0:02:23.3]} 20. cxd5 {[%clk 0:01:48.1]} 20...
cxd5 {[%clk 0:02:24.2]} 21. Qd2 {[%clk 0:01:39.1]} 21... Be6 {[%clk 0:02:11.3]}
22. Bd4 {[%clk 0:01:36.1]} 22... Rc8 {[%clk 0:02:07.2]} 23. Re3 {[%clk
0:01:31.5]} 23... Rc2 {[%clk 0:02:04.8]} 24. Qd3 {[%clk 0:01:09.6]} 24... Bf5
{[%clk 0:02:00]} 25. Qxf5 {[%clk 0:01:00.8]} 25... Bxd4 {[%clk 0:01:58.8]} 26.
Qxc2 {[%clk 0:00:58.9]} 26... Rxe3 {[%clk 0:01:59.1]} 27. Kh1 {[%clk 0:00:57.5]}
27... Rxg3 {[%clk 0:01:56.6]} 28. Qf5 {[%clk 0:00:54.1]} 28... Kg7 {[%clk
0:01:38.6]} 29. Rf1 {[%clk 0:00:53.4]} 29... Bf6 {[%clk 0:01:32.8]} 30. Kh2
{[%clk 0:00:41.1]} 30... Re3 {[%clk 0:01:30]} 31. Qxd5 {[%clk 0:00:39.1]} 31...
Qxd5 {[%clk 0:01:27]} 32. Bxd5 {[%clk 0:00:39.3]} 32... Re2+ {[%clk 0:01:27.7]}
33. Kg3 {[%clk 0:00:37.6]} 33... Rxa2 {[%clk 0:01:27.8]} 34. Rc1 {[%clk
0:00:34.7]} 34... h5 {[%clk 0:01:24.8]} 35. Kf3 {[%clk 0:00:32.4]} 35... Rd2
{[%clk 0:01:16]} 36. Rc5 {[%clk 0:00:30.9]} 36... Rd3+ {[%clk 0:01:11.2]} 37.
Ke4 {[%clk 0:00:31]} 37... Rxh3 {[%clk 0:01:10.7]} 38. Rc7 {[%clk 0:00:21.4]}
38... Rh4+ {[%clk 0:01:09.8]} 39. Ke3 {[%clk 0:00:20.6]} 39... Bd4+ {[%clk
0:01:09.3]} 40. Kd3 {[%clk 0:00:19.9]} 40... Rf4 {[%clk 0:01:09.1]} 41. Rc4
{[%clk 0:00:16.4]} 41... Be5 {[%clk 0:01:08.6]} 42. Rxf4 {[%clk 0:00:16.6]}
42... Bxf4 {[%clk 0:01:09.5]} 43. Ke4 {[%clk 0:00:17.2]} 43... Kg6 {[%clk
0:01:08.2]} 44. Bc6 {[%clk 0:00:12.6]} 44... f5+ {[%clk 0:01:08]} 45. Kd5 {[%clk
0:00:11.7]} 45... g4 {[%clk 0:01:07.4]} 46. Ke6 {[%clk 0:00:11.4]} 46... h4
{[%clk 0:01:07.3]} 0-1

[Event "Early-Titled-Tuesday-Blitz-March-05-2024"]
[Site "Chess.com"]
[Date "2024.03.05"]
[Round "2"]
[White "Jumbo"]
[Black "laziestwin"]
[Result "1-0"]
[WhiteElo "2928"]
[BlackElo "2597"]
[TimeControl "180+1"]
[EndTime "8:17:59 PST"]
[Termination "Jumbo won on time"]

1. Nf3 {[%clk 0:03:00.9]} 1... d5 {[%clk 0:02:51.5]} 2. g3 {[%clk 0:03:00.5]}
2... g6 {[%clk 0:02:46.5]} 3. Bg2 {[%clk 0:03:00.4]} 3... Bg7 {[%clk 0:02:47.2]}
4. O-O {[%clk 0:03:00.8]} 4... e5 {[%clk 0:02:47.5]} 5. d3 {[%clk 0:03:01]} 5...
Ne7 {[%clk 0:02:47.3]} 6. Nc3 {[%clk 0:02:58.8]} 6... O-O {[%clk 0:02:46.2]} 7.
e4 {[%clk 0:02:55.9]} 7... dxe4 {[%clk 0:02:43.9]} 8. dxe4 {[%clk 0:02:53.5]}
8... Bg4 {[%clk 0:02:33.5]} 9. h3 {[%clk 0:02:49.8]} 9... Be6 {[%clk 0:02:33.4]}
10. Be3 {[%clk 0:02:44.8]} 10... Nbc6 {[%clk 0:02:25.9]} 11. Qc1 {[%clk
0:02:22.8]} 11... Qc8 {[%clk 0:02:25.1]} 12. Kh2 {[%clk 0:02:15.1]} 12... Nd4
{[%clk 0:02:24.3]} 13. Ng5 {[%clk 0:01:37.2]} 13... Bc4 {[%clk 0:02:19.5]} 14.
Rd1 {[%clk 0:01:35.5]} 14... Rd8 {[%clk 0:02:11.5]} 15. b3 {[%clk 0:01:33.9]}
15... Be6 {[%clk 0:01:34.9]} 16. Nxe6 {[%clk 0:00:57.9]} 16... Qxe6 {[%clk
0:01:34.4]} 17. Nd5 {[%clk 0:00:52.4]} 17... Nxd5 {[%clk 0:01:26.7]} 18. exd5
{[%clk 0:00:53.3]} 18... Qf5 {[%clk 0:01:27]} 19. Rd2 {[%clk 0:00:47.5]} 19...
Nf3+ {[%clk 0:01:23.3]} 20. Bxf3 {[%clk 0:00:47.2]} 20... Qxf3 {[%clk
0:01:24.2]} 21. Qd1 {[%clk 0:00:47.6]} 21... Qxd1 {[%clk 0:00:55.5]} 22. Raxd1
{[%clk 0:00:48.5]} 22... Rd7 {[%clk 0:00:55.4]} 23. c4 {[%clk 0:00:48.8]} 23...
Rad8 {[%clk 0:00:48.9]} 24. g4 {[%clk 0:00:48.4]} 24... f5 {[%clk 0:00:43.3]}
25. f3 {[%clk 0:00:48.5]} 25... Kf7 {[%clk 0:00:40]} 26. Kg2 {[%clk 0:00:48.5]}
26... Bf8 {[%clk 0:00:33.7]} 27. c5 {[%clk 0:00:40.1]} 27... b6 {[%clk
0:00:09.5]} 28. c6 {[%clk 0:00:37.9]} 28... Rd6 {[%clk 0:00:09]} 29. b4 {[%clk
0:00:34.9]} 29... Be7 {[%clk 0:00:04.8]} 30. a4 {[%clk 0:00:33.4]} 30... e4
{[%clk 0:00:02.8]} 31. Bf4 {[%clk 0:00:24.5]} 1-0

[Event "Early-Titled-Tuesday-Blitz-March-05-2024"]
[Site "Chess.com"]
[Date "2024.03.05"]
[Round "2"]
[White "chess123456s"]
[Black "Sokoloco"]
[Result "1-0"]
[WhiteElo "2552"]
[BlackElo "2769"]
[TimeControl "180+1"]
[EndTime "8:17:59 PST"]
[Termination "chess123456s won on time"]

1. e4 {[%clk 0:03:00.9]} 1... g6 {[%clk 0:02:52.9]} 2. d4 {[%clk 0:03:00.4]}
2... Bg7 {[%clk 0:02:51]} 3. Nc3 {[%clk 0:03:00.4]} 3... d6 {[%clk 0:02:51.3]}
4. f4 {[%clk 0:02:59.8]} 4... Nf6 {[%clk 0:02:43]} 5. Nf3 {[%clk 0:02:59.4]}
5... O-O {[%clk 0:02:43.6]} 6. e5 {[%clk 0:02:59.3]} 6... dxe5 {[%clk
0:02:42.5]} 7. fxe5 {[%clk 0:03:00.2]} 7... Nd5 {[%clk 0:02:34.2]} 8. Bc4 {[%clk
0:03:00.5]} 8... Nb6 {[%clk 0:02:28]} 9. Bb3 {[%clk 0:03:00.4]} 9... Na6 {[%clk
0:02:28.6]} 10. Be3 {[%clk 0:02:51.9]} 10... c6 {[%clk 0:02:06.3]} 11. Qe2
{[%clk 0:02:30.9]} 11... Nd5 {[%clk 0:01:52.5]} 12. Nxd5 {[%clk 0:02:30.1]}
12... cxd5 {[%clk 0:01:53.4]} 13. O-O-O {[%clk 0:02:30.4]} 13... Bf5 {[%clk
0:01:26.3]} 14. Kb1 {[%clk 0:02:22.9]} 14... Rc8 {[%clk 0:01:26]} 15. a3 {[%clk
0:02:18]} 15... e6 {[%clk 0:01:11.1]} 16. Nd2 {[%clk 0:02:16]} 16... h5 {[%clk
0:00:52.3]} 17. g3 {[%clk 0:02:08.4]} 17... Bg4 {[%clk 0:00:47.9]} 18. Nf3
{[%clk 0:02:03.7]} 18... f6 {[%clk 0:00:47.8]} 19. h3 {[%clk 0:01:52]} 19...
Bxf3 {[%clk 0:00:46.3]} 20. Qxf3 {[%clk 0:01:52.9]} 20... fxe5 {[%clk
0:00:45.2]} 21. Qe2 {[%clk 0:01:53.4]} 21... e4 {[%clk 0:00:29.2]} 22. h4 {[%clk
0:01:28.3]} 22... Rf3 {[%clk 0:00:14.7]} 23. Bg5 {[%clk 0:01:28.3]} 23... Qb6
{[%clk 0:00:13.6]} 24. g4 {[%clk 0:01:21.2]} 24... hxg4 {[%clk 0:00:06.8]} 25.
h5 {[%clk 0:01:21.2]} 25... gxh5 {[%clk 0:00:07]} 26. Rxh5 {[%clk 0:01:22]}
26... Rcf8 {[%clk 0:00:05.8]} 27. Qg2 {[%clk 0:01:11.4]} 27... g3 {[%clk
0:00:03.9]} 28. Qh3 {[%clk 0:01:07.3]} 28... Nc7 {[%clk 0:00:04.4]} 29. Bh6
{[%clk 0:01:02.2]} 29... Bf6 {[%clk 0:00:01.3]} 30. Bxf8 {[%clk 0:01:01.6]}
30... Kxf8 {[%clk 0:00:02.2]} 31. Qg4 {[%clk 0:00:59.2]} 31... Qd6 {[%clk
0:00:02]} 32. Qg6 {[%clk 0:00:53.5]} 32... Ne8 {[%clk 0:00:02.6]} 33. Rh7 {[%clk
0:00:49.9]} 33... Ng7 {[%clk 0:00:02]} 34. Ba4 {[%clk 0:00:46.2]} 34... Qf4
{[%clk 0:00:01.7]} 35. Rxg7 {[%clk 0:00:40.8]} 1-0

[Event "Early-Titled-Tuesday-Blitz-March-05-2024"]
[Site "Chess.com"]
[Date "2024.03.05"]
[Round "2"]
[White "Brave_spirit12"]
[Black "annamaja"]
[Result "1-0"]
[WhiteElo "2712"]
[BlackElo "2462"]
[TimeControl "180+1"]
[EndTime "8:18:00 PST"]
[Termination "Brave_spirit12 won on time"]

1. e4 {[%clk 0:03:00.9]} 1... e6 {[%clk 0:03:00.3]} 2. d4 {[%clk 0:03:00.5]}
2... d5 {[%clk 0:03:00.5]} 3. Nc3 {[%clk 0:03:01]} 3... Nf6 {[%clk 0:02:57.8]}
4. e5 {[%clk 0:03:01.5]} 4... Nfd7 {[%clk 0:02:57.8]} 5. f4 {[%clk 0:03:01.8]}
5... c5 {[%clk 0:02:58]} 6. Nf3 {[%clk 0:03:01.3]} 6... Nc6 {[%clk 0:02:57.1]}
7. Be3 {[%clk 0:02:57.1]} 7... a6 {[%clk 0:02:56.7]} 8. Qd2 {[%clk 0:02:50.4]}
8... b5 {[%clk 0:02:56.3]} 9. a3 {[%clk 0:02:48.8]} 9... Qa5 {[%clk 0:02:55]}
10. Ra2 {[%clk 0:02:45.8]} 10... Qb6 {[%clk 0:02:49.8]} 11. Nd1 {[%clk
0:02:14.5]} 11... cxd4 {[%clk 0:02:35.4]} 12. Nxd4 {[%clk 0:02:15.4]} 12... Nxd4
{[%clk 0:02:31.7]} 13. Bxd4 {[%clk 0:02:16.3]} 13... Bc5 {[%clk 0:02:31.2]} 14.
c3 {[%clk 0:02:13]} 14... f6 {[%clk 0:02:26.5]} 15. Bd3 {[%clk 0:02:06.9]} 15...
fxe5 {[%clk 0:02:21.5]} 16. fxe5 {[%clk 0:02:02.3]} 16... O-O {[%clk 0:02:17.8]}
17. Qe3 {[%clk 0:01:57.6]} 17... Bxd4 {[%clk 0:01:51]} 18. cxd4 {[%clk
0:01:58.5]} 18... b4 {[%clk 0:01:51.7]} 19. Nf2 {[%clk 0:01:37.7]} 19... bxa3
{[%clk 0:01:32.9]} 20. bxa3 {[%clk 0:01:38.6]} 20... Qa5+ {[%clk 0:01:32.9]} 21.
Ke2 {[%clk 0:01:25.7]} 21... Nb6 {[%clk 0:01:29]} 22. Qd2 {[%clk 0:01:19.1]}
22... Qa4 {[%clk 0:01:16.3]} 23. Qb4 {[%clk 0:01:10.6]} 23... Rb8 {[%clk
0:01:16.3]} 24. Rb1 {[%clk 0:00:55.8]} 24... Qd7 {[%clk 0:01:05.7]} 25. Bxh7+
{[%clk 0:00:52.3]} 25... Kxh7 {[%clk 0:00:47.2]} 26. Qxf8 {[%clk 0:00:51.7]}
26... a5 {[%clk 0:00:47.2]} 27. Ke1 {[%clk 0:00:43.2]} 27... Qc7 {[%clk
0:00:38.1]} 28. Qc5 {[%clk 0:00:40]} 28... Qxc5 {[%clk 0:00:07.5]} 29. dxc5
{[%clk 0:00:34.3]} 29... Nd7 {[%clk 0:00:08]} 30. Rxb8 {[%clk 0:00:33.4]} 30...
Nxb8 {[%clk 0:00:08.9]} 31. Rb2 {[%clk 0:00:31.2]} 31... Nd7 {[%clk 0:00:07.9]}
32. c6 {[%clk 0:00:31.5]} 32... Nxe5 {[%clk 0:00:08.2]} 33. c7 {[%clk
0:00:31.7]} 33... Kg6 {[%clk 0:00:02.2]} 34. Rb8 {[%clk 0:00:31.7]} 1-0

[Event "Early-Titled-Tuesday-Blitz-March-05-2024"]
[Site "Chess.com"]
[Date "2024.03.05"]
[Round "2"]
[White "VinzentSpitzl"]
[Black "Kiborg95"]
[Result "0-1"]
[WhiteElo "2539"]
[BlackElo "2800"]
[TimeControl "180+1"]
[EndTime "8:18:01 PST"]
[Termination "Kiborg95 won by resignation"]

1. e4 {[%clk 0:03:00.9]} 1... d6 {[%clk 0:03:00.5]} 2. d4 {[%clk 0:03:00.4]}
2... Nf6 {[%clk 0:03:00.9]} 3. Nc3 {[%clk 0:03:00.6]} 3... e5 {[%clk 0:03:01.2]}
4. Nge2 {[%clk 0:02:59.1]} 4... c6 {[%clk 0:03:00.8]} 5. a4 {[%clk 0:02:58.3]}
5... Be7 {[%clk 0:02:59.8]} 6. g3 {[%clk 0:02:58.4]} 6... O-O {[%clk 0:02:59.2]}
7. Bg2 {[%clk 0:02:58.6]} 7... Nbd7 {[%clk 0:02:58.1]} 8. O-O {[%clk 0:02:58.5]}
8... b6 {[%clk 0:02:58.8]} 9. h3 {[%clk 0:02:56.9]} 9... h5 {[%clk 0:02:59.4]}
10. Be3 {[%clk 0:02:56.5]} 10... a6 {[%clk 0:02:59.9]} 11. f4 {[%clk 0:02:52.3]}
11... Bb7 {[%clk 0:02:59.9]} 12. Qd2 {[%clk 0:02:46.2]} 12... Re8 {[%clk
0:02:59.8]} 13. Rae1 {[%clk 0:02:36.5]} 13... b5 {[%clk 0:02:59.5]} 14. b3
{[%clk 0:02:24.4]} 14... Bf8 {[%clk 0:02:52]} 15. Kh2 {[%clk 0:02:19.6]} 15...
exd4 {[%clk 0:02:42.8]} 16. Qxd4 {[%clk 0:02:05.7]} 16... Qc7 {[%clk 0:01:49.9]}
17. Nd1 {[%clk 0:01:46.9]} 17... c5 {[%clk 0:01:46.5]} 18. Qd3 {[%clk
0:01:47.2]} 18... c4 {[%clk 0:01:42.4]} 19. Qd4 {[%clk 0:01:39.8]} 19... Bxe4
{[%clk 0:01:41.9]} 20. Nf2 {[%clk 0:01:29.7]} 20... Bxg2 {[%clk 0:01:34.9]} 21.
Kxg2 {[%clk 0:01:30.6]} 21... Qc6+ {[%clk 0:01:23.9]} 22. Kh2 {[%clk 0:01:30.6]}
22... d5 {[%clk 0:01:21.3]} 23. Ng1 {[%clk 0:01:05]} 23... bxa4 {[%clk 0:01:13]}
24. bxa4 {[%clk 0:01:04]} 24... Qxa4 {[%clk 0:01:10.1]} 25. c3 {[%clk
0:00:54.3]} 25... Bc5 {[%clk 0:01:03.1]} 26. Qd2 {[%clk 0:00:54.1]} 26... Bxe3
{[%clk 0:01:03.8]} 27. Rxe3 {[%clk 0:00:54.6]} 27... Rxe3 {[%clk 0:01:04.6]} 28.
Qxe3 {[%clk 0:00:54.8]} 28... Re8 {[%clk 0:01:03.2]} 29. Qd2 {[%clk 0:00:49.5]}
29... Nc5 {[%clk 0:01:03.4]} 30. Nf3 {[%clk 0:00:48.4]} 30... Nce4 {[%clk
0:01:01.9]} 31. Nxe4 {[%clk 0:00:48.4]} 31... Nxe4 {[%clk 0:00:59.5]} 32. Qxd5
{[%clk 0:00:37.2]} 32... Qc2+ {[%clk 0:00:58.7]} 33. Kg1 {[%clk 0:00:36.8]}
33... Qxc3 {[%clk 0:00:42]} 34. Qxh5 {[%clk 0:00:19.5]} 34... Nxg3 {[%clk
0:00:37.5]} 0-1

[Event "Early-Titled-Tuesday-Blitz-March-05-2024"]
[Site "Chess.com"]
[Date "2024.03.05"]
[Round "2"]
[White "bylavochka"]
[Black "zsizsi99"]
[Result "1-0"]
[WhiteElo "2312"]
[BlackElo "2496"]
[TimeControl "180+1"]
[EndTime "8:18:01 PST"]
[Termination "bylavochka won by resignation"]

1. e4 {[%clk 0:02:31.3]} 1... c5 {[%clk 0:02:56.9]} 2. Nf3 {[%clk 0:02:31.2]}
2... Nc6 {[%clk 0:02:57.1]} 3. d4 {[%clk 0:02:31.8]} 3... cxd4 {[%clk
0:02:57.2]} 4. Nxd4 {[%clk 0:02:32.7]} 4... e5 {[%clk 0:02:57.2]} 5. Nb5 {[%clk
0:02:32.8]} 5... d6 {[%clk 0:02:57.3]} 6. N1c3 {[%clk 0:02:33.2]} 6... a6 {[%clk
0:02:56.1]} 7. Na3 {[%clk 0:02:33.1]} 7... Be7 {[%clk 0:02:56.3]} 8. Nd5 {[%clk
0:02:32.6]} 8... b5 {[%clk 0:02:51.1]} 9. c3 {[%clk 0:02:29.4]} 9... Nf6 {[%clk
0:02:49.9]} 10. Nc2 {[%clk 0:02:28.5]} 10... Nxe4 {[%clk 0:02:41.2]} 11. Qf3
{[%clk 0:01:56.8]} 11... f5 {[%clk 0:02:39.9]} 12. Bd3 {[%clk 0:01:52.1]} 12...
O-O {[%clk 0:02:32.9]} 13. Bxe4 {[%clk 0:01:39.6]} 13... fxe4 {[%clk 0:02:33.5]}
14. Qxe4 {[%clk 0:01:40.5]} 14... Bh4 {[%clk 0:02:29.6]} 15. O-O {[%clk
0:01:28.6]} 15... Bf5 {[%clk 0:02:28.6]} 16. Qe2 {[%clk 0:01:24.2]} 16... Ne7
{[%clk 0:01:59]} 17. Nce3 {[%clk 0:01:14.3]} 17... Be4 {[%clk 0:01:57.9]} 18.
Qg4 {[%clk 0:01:00.4]} 18... Bxd5 {[%clk 0:01:30.4]} 19. Nxd5 {[%clk 0:00:48.3]}
19... Nxd5 {[%clk 0:01:29.2]} 20. Qe6+ {[%clk 0:00:48]} 20... Kh8 {[%clk
0:01:28.3]} 21. Qxd5 {[%clk 0:00:48.6]} 21... Qf6 {[%clk 0:00:19]} 22. Be3
{[%clk 0:00:46.7]} 22... Qg6 {[%clk 0:00:16.2]} 23. a4 {[%clk 0:00:42.3]} 23...
Be7 {[%clk 0:00:16.7]} 24. axb5 {[%clk 0:00:40.7]} 24... Qc2 {[%clk 0:00:15.7]}
25. Rxa6 {[%clk 0:00:22]} 25... Rab8 {[%clk 0:00:13.4]} 26. Qa2 {[%clk
0:00:13.3]} 26... Rfc8 {[%clk 0:00:12]} 27. b6 {[%clk 0:00:11.9]} 27... Rxc3
{[%clk 0:00:10.9]} 28. bxc3 {[%clk 0:00:11.6]} 28... Qxc3 {[%clk 0:00:10.4]} 29.
Ra8 {[%clk 0:00:10.8]} 29... Qc8 {[%clk 0:00:10.6]} 30. Rxb8 {[%clk 0:00:11.1]}
1-0

[Event "Early-Titled-Tuesday-Blitz-March-05-2024"]
[Site "Chess.com"]
[Date "2024.03.05"]
[Round "2"]
[White "Felix-Rose"]
[Black "MFatigue"]
[Result "0-1"]
[WhiteElo "2299"]
[BlackElo "2514"]
[TimeControl "180+1"]
[EndTime "8:18:02 PST"]
[Termination "MFatigue won on time"]

1. e4 {[%clk 0:03:00]} 1... e6 {[%clk 0:03:00.5]} 2. d4 {[%clk 0:02:59.9]} 2...
d5 {[%clk 0:03:01.1]} 3. Nc3 {[%clk 0:03:00.6]} 3... f6 {[%clk 0:03:00.6]} 4.
Bd3 {[%clk 0:02:55.4]} 4... Nc6 {[%clk 0:02:51.9]} 5. Nf3 {[%clk 0:02:54.7]}
5... Bb4 {[%clk 0:02:50.4]} 6. O-O {[%clk 0:02:52.6]} 6... Nge7 {[%clk
0:02:39.6]} 7. Bd2 {[%clk 0:02:44.3]} 7... O-O {[%clk 0:02:36.8]} 8. a3 {[%clk
0:02:42.7]} 8... Ba5 {[%clk 0:02:31.7]} 9. b4 {[%clk 0:02:38.1]} 9... Bb6 {[%clk
0:02:31.9]} 10. exd5 {[%clk 0:02:33.5]} 10... Nxd4 {[%clk 0:02:27.6]} 11. dxe6
{[%clk 0:01:47.4]} 11... Bxe6 {[%clk 0:02:26.2]} 12. Na4 {[%clk 0:01:19.8]}
12... Nxf3+ {[%clk 0:02:08.6]} 13. Qxf3 {[%clk 0:01:19.4]} 13... Bd5 {[%clk
0:02:09.3]} 14. Qh3 {[%clk 0:01:11.8]} 14... g6 {[%clk 0:02:02.2]} 15. Bh6
{[%clk 0:00:38.4]} 15... Re8 {[%clk 0:01:50.5]} 16. Rad1 {[%clk 0:00:32.5]}
16... Qc8 {[%clk 0:01:37.7]} 17. Qxc8 {[%clk 0:00:13]} 17... Raxc8 {[%clk
0:01:20.1]} 18. c4 {[%clk 0:00:13.9]} 18... Bc6 {[%clk 0:01:00.5]} 19. b5 {[%clk
0:00:14.1]} 19... Bd7 {[%clk 0:01:00.9]} 20. Bxg6 {[%clk 0:00:13.4]} 20... Nxg6
{[%clk 0:00:53.4]} 21. Rxd7 {[%clk 0:00:13.5]} 21... Re7 {[%clk 0:00:53.2]} 22.
Rfd1 {[%clk 0:00:11.8]} 22... Rce8 {[%clk 0:00:53.3]} 23. Rxe7 {[%clk
0:00:09.1]} 23... Rxe7 {[%clk 0:00:54.2]} 24. c5 {[%clk 0:00:05.7]} 24... Ba5
{[%clk 0:00:54.1]} 25. c6 {[%clk 0:00:05]} 25... bxc6 {[%clk 0:00:49.9]} 26.
bxc6 {[%clk 0:00:05.1]} 26... Ne5 {[%clk 0:00:50]} 27. Rd8+ {[%clk 0:00:04.1]}
27... Kf7 {[%clk 0:00:50.6]} 28. Rf8+ {[%clk 0:00:03.8]} 28... Kg6 {[%clk
0:00:51.2]} 29. Be3 {[%clk 0:00:03.6]} 29... Nxc6 {[%clk 0:00:48.4]} 30. Rg8+
{[%clk 0:00:04.2]} 30... Kf7 {[%clk 0:00:38.2]} 31. Rg4 {[%clk 0:00:04.2]} 31...
Ne5 {[%clk 0:00:35.9]} 32. Rh4 {[%clk 0:00:01.7]} 32... Kg8 {[%clk 0:00:35.8]}
0-1

[Event "Early-Titled-Tuesday-Blitz-March-05-2024"]
[Site "Chess.com"]
[Date "2024.03.05"]
[Round "2"]
[White "ricaurtelopezj1955"]
[Black "GreenPeach24"]
[Result "0-1"]
[WhiteElo "2179"]
[BlackElo "2466"]
[TimeControl "180+1"]
[EndTime "8:18:02 PST"]
[Termination "GreenPeach24 won on time"]

1. e4 {[%clk 0:03:00.9]} 1... c6 {[%clk 0:02:59.7]} 2. d4 {[%clk 0:02:58.4]}
2... d5 {[%clk 0:03:00]} 3. exd5 {[%clk 0:02:57.6]} 3... cxd5 {[%clk 0:03:00.9]}
4. c4 {[%clk 0:02:54.4]} 4... Nc6 {[%clk 0:02:59]} 5. Nc3 {[%clk 0:02:51.8]}
5... Nf6 {[%clk 0:02:58.5]} 6. Bg5 {[%clk 0:02:48.5]} 6... Ne4 {[%clk 0:02:48]}
7. cxd5 {[%clk 0:02:41.1]} 7... Nxc3 {[%clk 0:02:45.1]} 8. bxc3 {[%clk
0:02:32.4]} 8... Qxd5 {[%clk 0:02:45.1]} 9. Nf3 {[%clk 0:02:23]} 9... g6 {[%clk
0:02:36.3]} 10. c4 {[%clk 0:02:10.4]} 10... Qe4+ {[%clk 0:02:29.3]} 11. Be2
{[%clk 0:02:04]} 11... Bg7 {[%clk 0:02:28.8]} 12. O-O {[%clk 0:02:01]} 12...
Nxd4 {[%clk 0:02:27.1]} 13. Re1 {[%clk 0:01:40.3]} 13... Ne6 {[%clk 0:02:18.9]}
14. Bd3 {[%clk 0:01:21.1]} 14... Qc6 {[%clk 0:02:16.5]} 15. Bh4 {[%clk
0:01:09.6]} 15... Qc5 {[%clk 0:01:43.3]} 16. Rb1 {[%clk 0:01:05.2]} 16... a6
{[%clk 0:01:40.8]} 17. Qe2 {[%clk 0:00:58.2]} 17... O-O {[%clk 0:01:38]} 18. Be4
{[%clk 0:00:50.6]} 18... Ra7 {[%clk 0:00:53.4]} 19. Bd5 {[%clk 0:00:46]} 19...
b6 {[%clk 0:00:50.3]} 20. Ne5 {[%clk 0:00:41.7]} 20... Nf4 {[%clk 0:00:47.8]}
21. Qe4 {[%clk 0:00:33.3]} 21... Nxd5 {[%clk 0:00:45.8]} 22. cxd5 {[%clk
0:00:32.3]} 22... Bf5 {[%clk 0:00:45.5]} 23. Qf4 {[%clk 0:00:28.2]} 23... Bxb1
{[%clk 0:00:44.6]} 24. Rxb1 {[%clk 0:00:19.5]} 24... Qxd5 {[%clk 0:00:44.6]} 25.
Nf3 {[%clk 0:00:16.3]} 25... Rd7 {[%clk 0:00:42.2]} 26. h3 {[%clk 0:00:15.4]}
26... b5 {[%clk 0:00:40.5]} 27. Qb4 {[%clk 0:00:13.4]} 27... e6 {[%clk
0:00:38.2]} 28. Bg3 {[%clk 0:00:09.1]} 28... Rc8 {[%clk 0:00:37.4]} 29. Qa5
{[%clk 0:00:05.6]} 29... Rc6 {[%clk 0:00:20.4]} 0-1